fUSD/lending_fUSD_20240412
["ID","MTS","AMOUNT","RATE_DAILY","PERIOD"]
[322295905,1712939494574,-500.0,0.00051506,120]
[322295906,1712939494584,-500.0,0.00051506,120]
[322295907,1712939494595,-1311.53,0.00051506,120]
[322295908,1712939494605,-1628.88,0.00051506,120]
[322295909,1712939494616,-515.58,0.00051506,120]
[322295910,1712939494626,-14006.78,0.00051506,120]
[322295911,1712939494637,-500.0,0.00051506,120]
[322295912,1712939494646,-803.87,0.00051506,120]
[322295913,1712939494655,-500.0,0.00051506,120]
[322295914,1712939494665,-380.71207629,0.00051506,120]
[322295915,1712939494674,-2680.68,0.00051506,120]
[322295916,1712939494684,-978.71,0.00051506,120]
[322295917,1712939494694,-2121.53,0.00051506,120]
[322295918,1712939494703,-603.45,0.00051506,120]
[322295919,1712939494714,-1410.1,0.00051506,120]
[322295920,1712939494723,-2010.88,0.00051506,120]
[322295921,1712939494733,-524.48,0.00051506,120]
[322295922,1712939494742,-2625.88,0.00051506,120]
[322295923,1712939494752,-895.41,0.00051506,120]
[322295924,1712939494761,-2788.58,0.00051506,120]
[322295925,1712939494771,-370.91960616,0.00051506,120]
[322295926,1712939494797,-864.42039384,0.00051506,120]
[322295927,1712939494807,-665.73,0.00051506,120]
[322295928,1712939494817,-1020.56,0.00051506,120]
[322295929,1712939494827,-819.11,0.00051506,120]
[322295930,1712939494836,-565.07,0.00051506,120]
[322295931,1712939494846,-920.52,0.00051506,120]
[322295932,1712939494857,-584.81,0.00051506,120]
[322295933,1712939494867,-1006.65,0.00051506,120]
[322295934,1712939494877,-6172.84,0.00051506,120]
[322295935,1712939494887,-502.19,0.00051506,120]
[322295936,1712939494897,-1224.43,0.00051506,120]
[322295937,1712939494906,-701.12,0.00051506,120]
[322295938,1712939494916,-3794.47,0.00051506,120]
[322295939,1712939494925,-795.66,0.00051506,120]
[322295940,1712939494935,-608.21,0.00051506,120]
[322295941,1712939494944,-938.69,0.00051506,120]
[322295942,1712939494955,-1074.92,0.00051506,120]
[322295943,1712939494965,-705.22,0.00051506,120]
[322295944,1712939494974,-926.87,0.00051506,120]
[322295945,1712939494984,-2317.31,0.00051506,120]
[322295946,1712939494994,-566.69,0.00051506,120]
[322295947,1712939495006,-550.45,0.00051506,120]
[322295948,1712939495016,-1028.71,0.00051506,120]
[322295949,1712939495026,-1045.05,0.00051506,120]
[322295950,1712939495036,-500.0,0.00051506,120]
[322295951,1712939495047,-650.29960616,0.00051506,120]
[322295952,1712939495060,-886.54039384,0.00051506,120]
[322295953,1712939495070,-500.0,0.00051506,120]
[322295954,1712939495079,-1599.82,0.00051506,120]
[322295955,1712939495089,-886.03,0.00051506,120]
[322295956,1712939495100,-500.0,0.00051506,120]
[322295957,1712939495110,-593.38,0.00051506,21]
[322295958,1712939495120,-868.49,0.00051506,120]
[322295959,1712939495129,-995.51,0.00051506,120]
[322295960,1712939495140,-753.01,0.00051506,120]
[322295961,1712939495151,-660.73,0.00051506,120]
[322295962,1712939495166,-500.0,0.00051506,120]
[322295963,1712939495176,-2246.9,0.00051506,120]
[322295964,1712939495186,-1000.0,0.000516,30]
[322295965,1712939495196,-500.0,0.000516,30]
[322295966,1712939495206,-224.23333333,0.00051616,120]
[322295967,1712939495221,-3000.0,0.00051643,120]
[322295968,1712939495233,-300.0,0.000517,7]
[322295969,1712939495244,-245.91,0.00051726,120]
[322295970,1712939495256,-508.57,0.0005178,120]
[322295971,1712939495266,-219.42076058,0.0005178,120]
[322295972,1712939495276,-561.65,0.0005178,120]
[322295973,1712939495286,-500.0,0.0005178,120]
[322295974,1712939495295,-661.69,0.0005178,2]
[322295975,1712939495305,-525.48,0.0005178,120]
[322295976,1712939495315,-500.0,0.0005178,120]
[322295977,1712939495324,-579.42,0.0005178,120]
[322295978,1712939495334,-718.46,0.0005178,120]
[322295979,1712939495345,-500.0,0.0005178,120]
[322295980,1712939495354,-500.0,0.0005178,120]
[322295981,1712939495364,-513.42,0.0005178,120]
[322295982,1712939495374,-595.54,0.0005178,2]
[322295983,1712939495384,-586.75,0.0005178,120]
[322295984,1712939495395,-704.2,0.0005178,120]
[322295985,1712939495405,-2163.25358994,0.0005178,120]
[322295986,1712939495415,-546.18,0.0005178,120]
[322295987,1712939495425,-500.0,0.0005178,120]
[322295988,1712939495435,-500.0,0.0005178,120]
[322295989,1712939495445,-1352.77,0.0005178,120]
[322295990,1712939495455,-673.18,0.0005178,120]
[322295991,1712939495465,-629.37,0.0005178,120]
[322295992,1712939495475,-182.21,0.0005178,120]
[322295993,1712939495485,-2203.64,0.0005178,120]
[322295994,1712939495494,-214.24192231,0.0005178,120]
[322295995,1712939495561,-180.0,0.00032191,2]
[322295996,1712939495571,-1639.24672767,0.00033676,2]
[322295997,1712939495582,-6290.31,0.00046575,31]
[322295998,1712939495593,-6290.31,0.00046849,31]
[322295999,1712939495604,-500.0,0.00047397,31]
[322296000,1712939495615,-500.0,0.00048219,31]
[322296001,1712939495625,-4735.55887974,0.000483,2]
[322296002,1712939495635,-947.76807769,0.0005178,120]
[322296003,1712939495646,-716.23,0.0005178,120]
[322296004,1712939495656,-2667.34,0.0005178,120]
[322296005,1712939495666,-1151.02,0.0005178,120]
[322296006,1712939495675,-500.0,0.0005178,120]
[322296007,1712939495685,-597.82,0.0005178,120]
[322296008,1712939495695,-634.43,0.0005178,120]
[322296009,1712939495705,-1280.3,0.0005178,120]
[322296010,1712939495715,-500.0,0.0005178,120]
[322296011,1712939495726,-1116.79,0.0005178,120]
[322296012,1712939495737,-7302.32,0.0005178,120]
[322296013,1712939495747,-1813.94,0.0005178,120]
[322296014,1712939495758,-807.13,0.0005178,120]
[322296015,1712939495768,-563.61103612,0.0005178,120]
[322296016,1712939495778,-609.01,0.0005178,120]
[322296017,1712939495788,-519.31,0.0005178,120]
[322296018,1712939495799,-1010.89,0.0005178,120]
[322296019,1712939495811,-2090.34,0.0005178,120]
[322296020,1712939495821,-670.23,0.0005178,120]
[322296021,1712939495831,-520.06,0.0005178,120]
[322296022,1712939495841,-568.18,0.0005178,120]
[322296023,1712939495851,-500.0,0.0005178,120]
[322296024,1712939495862,-500.0,0.0005178,120]
[322296025,1712939495872,-500.0,0.0005178,120]
[322296026,1712939495882,-1311.53,0.0005178,120]
[322296027,1712939495892,-1628.88,0.0005178,120]
[322296028,1712939495903,-515.58,0.0005178,120]
[322296029,1712939495914,-2572.4215977,0.0005178,120]
[322296030,1712939495928,-277.49431885,0.0005178,120]
[322296031,1712939495940,-259.41654144,0.0005178,120]
[322296032,1712939495953,-326.02721356,0.0005178,120]
[322296033,1712939495972,-1811.46425936,0.0005178,120]
[322296034,1712939495984,-2099.99881212,0.0005178,120]
[322296035,1712939496002,-500.0,0.00046575,31]
[322296036,1712939496012,-6659.95725697,0.0005178,120]
[322296037,1712939496022,-500.0,0.0005178,120]
[322296038,1712939496032,-803.87,0.0005178,120]
[322296039,1712939496041,-68.67274303,0.0005178,120]
[322296040,1712939496348,-500.0,0.00046575,31]
[322296041,1712939496359,-500.0,0.00046575,31]
[322296042,1712939496369,-500.0,0.00046849,31]
[322296043,1712939496379,-170.65,0.00046849,31]
[322296044,1712939496389,-1691.35,0.00047123,31]
[322296045,1712939496402,-854.9999999,0.00047123,31]
[322296046,1712939496414,-309.12639055,0.00047123,31]
[322296047,1712939496426,-947.99946604,0.00047123,31]
[322296048,1712939496505,-2486.83414351,0.00047123,31]
[322296049,1712939496515,-165.56,0.00047123,31]
[322296050,1712939496525,-6290.31,0.00047397,31]
[322296051,1712939496536,-500.0,0.00047671,31]
[322296052,1712939496549,-498.06023157,0.00047671,31]
[322296053,1712939496567,-3096.48244863,0.00047671,31]
[322296054,1712939496581,-2695.7673198,0.00047671,31]
[322296055,1712939496592,-500.0,0.00047945,31]
[322296056,1712939496602,-5260.84256813,0.00047945,31]
[322296057,1712939496615,-1029.46743187,0.00047945,31]
[322296058,1712939496627,-500.0,0.00048219,31]
[322296059,1712939496637,-1118.28547596,0.00048219,31]
[322296060,1712939496650,-5172.02452404,0.00048219,31]
[322296061,1712939496661,-500.0,0.00048493,31]
[322296062,1712939496670,-203.07197739,0.00048493,31]
[322296063,1712939496681,-6290.31,0.00048493,31]
[322296064,1712939496691,-500.0,0.00048767,31]
[322296065,1712939496843,-6290.31,0.00048767,31]
[322296066,1712939496857,-602.03180547,0.00049041,31]
[322296067,1712939496868,-6290.31,0.00049041,31]
[322296068,1712939496878,-431.32725697,0.0005178,120]
[322296069,1712939496888,-2680.68,0.0005178,120]
[322296070,1712939496899,-978.71,0.0005178,120]
[322296071,1712939496908,-2121.53,0.0005178,120]
[322296072,1712939496918,-603.45,0.0005178,120]
[322296073,1712939496928,-1410.1,0.0005178,120]
[322296074,1712939496937,-2010.88,0.0005178,120]
[322296075,1712939496947,-524.48,0.0005178,120]
[322296076,1712939496957,-2625.88,0.0005178,120]
[322296077,1712939496967,-895.41,0.0005178,120]
[322296078,1712939496979,-2788.58,0.0005178,120]
[322296079,1712939496990,-1235.34,0.0005178,120]
[322296080,1712939497000,-665.73,0.0005178,120]
[322296081,1712939497014,-1020.56,0.0005178,120]
[322296082,1712939497025,-819.11,0.0005178,120]
[322296083,1712939497036,-565.07,0.0005178,120]
[322296084,1712939497045,-920.52,0.0005178,120]
[322296085,1712939497055,-584.81,0.0005178,120]
[322296086,1712939497065,-1006.65,0.0005178,120]
[322296087,1712939497075,-6172.84,0.0005178,120]
[322296088,1712939497085,-502.19,0.0005178,120]
[322296089,1712939497095,-1224.43,0.0005178,120]
[322296090,1712939497106,-701.12,0.0005178,120]
[322296091,1712939497116,-3794.47,0.0005178,120]
[322296092,1712939497126,-795.66,0.0005178,120]
[322296093,1712939497136,-608.21,0.0005178,120]
[322296094,1712939497146,-938.69,0.0005178,120]
[322296095,1712939497158,-1074.92,0.0005178,120]
[322296096,1712939497168,-705.22,0.0005178,120]
[322296097,1712939497178,-926.87,0.0005178,120]
[322296098,1712939497188,-2317.31,0.0005178,120]
[322296099,1712939497198,-566.69,0.0005178,120]
[322296100,1712939497208,-550.45,0.0005178,120]
[322296101,1712939497217,-1028.71,0.0005178,120]
[322296102,1712939497228,-1045.05,0.0005178,120]
[322296103,1712939497238,-500.0,0.0005178,120]
[322296104,1712939497248,-1536.84,0.0005178,120]
[322296105,1712939497262,-500.0,0.0005178,120]
[322296106,1712939497271,-1599.82,0.0005178,120]
[322296107,1712939497280,-886.03,0.0005178,120]
[322296108,1712939497290,-500.0,0.0005178,120]
[322296109,1712939497300,-593.38,0.0005178,21]
[322296110,1712939497310,-868.49,0.0005178,120]
[322296111,1712939497320,-995.51,0.0005178,120]
[322296112,1712939497330,-753.01,0.0005178,120]
[322296113,1712939497340,-660.73,0.0005178,120]
[322296114,1712939497350,-428.07781155,0.0005178,120]
[322296115,1712939497360,-2246.9,0.0005178,120]
[322296116,1712939497370,-3319.179165,0.000518,30]
[322296117,1712939497379,-4741.684523,0.000518,30]
[322296118,1712939497389,-2464.748155,0.000518,30]
[322296119,1712939497399,-2756.050209,0.000518,30]
[322296120,1712939497409,-5787.705441,0.000518,30]
[322296121,1712939497418,-1000.0,0.000519,30]
[322296122,1712939497428,-500.0,0.000519,120]
[322296123,1712939497438,-2100.0,0.000519,18]
[322296124,1712939497447,-3930.2135999,0.00051929,2]
[322296125,1712939497457,-151.0,0.00051945,120]
[322296126,1712939497467,-151.0,0.00051964,120]
[322296127,1712939497476,-182.030433,0.00051964,120]
[322296128,1712939497486,-182.030433,0.00051964,120]
[322296129,1712939497496,-151.0,0.00051964,30]
[322296130,1712939497508,-225.671511,0.00051964,120]
[322296131,1712939497518,-225.671511,0.00051964,120]
[322296132,1712939497528,-1633.2150555,0.00051964,2]
[322296133,1712939497540,-151.0,0.00051964,120]
[322296134,1712939497551,-151.0,0.00051964,120]
[322296135,1712939497561,-151.0,0.00051964,120]
[322296136,1712939497571,-151.0,0.00051964,120]
[322296137,1712939497582,-151.0,0.00051964,120]
[322296138,1712939497592,-258.15772,0.00051964,120]
[322296139,1712939497602,-151.0,0.00051964,120]
[322296140,1712939497615,-151.0,0.00051964,120]
[322296141,1712939497625,-54671.2085181,0.00051964,2]
[322296142,1712939497634,-100000.0,0.00052,52]
[322296143,1712939497644,-500000.0,0.00052,120]
[322296144,1712939497654,-416.18485444,0.00052,120]
[322296145,1712939497664,-200.0,0.00052,2]
[322296146,1712939497674,-198.57166935,0.00052,30]
[322296147,1712939497685,-50000.0,0.00052,120]
[322296148,1712939497694,-1150.64523178,0.00052,120]
[322296149,1712939497704,-2214.24021698,0.00052,120]
[322296150,1712939497714,-220000.0,0.00052,7]
[322296151,1712939497724,-169.15289219,0.00052,90]
[322296152,1712939497733,-150.0,0.00052,120]
[322296153,1712939497743,-1034.0,0.00052,10]
[322296154,1712939497753,-289.04,0.00052,30]
[322296155,1712939497765,-10926.00752179,0.00052,120]
[322296156,1712939497775,-200.0,0.00052,120]
[322296157,1712939497785,-151.0,0.00052,120]
[322296158,1712939497795,-151.0,0.00052,120]
[322296159,1712939497805,-151.0,0.00052,120]
[322296160,1712939497815,-152.781991,0.00052,120]
[322296161,1712939497825,-151.0,0.00052,14]
[322296162,1712939497835,-151.0,0.00052,120]
[322296163,1712939497845,-151.0,0.00052,120]
[322296164,1712939497854,-151.0,0.00052,120]
[322296165,1712939497864,-232.585577,0.00052,30]
[322296166,1712939497874,-167.981359,0.00052,120]
[322296167,1712939497884,-151.0,0.00052,120]
[322296168,1712939497894,-151.0,0.00052,120]
[322296169,1712939497903,-151.0,0.00052,120]
[322296170,1712939497913,-151.0,0.00052,120]
[322296171,1712939497923,-613.416944,0.00052,45]
[322296172,1712939497933,-613.416944,0.00052,45]
[322296173,1712939497942,-220.231394,0.00052,120]
[322296174,1712939497951,-151.0,0.00052,120]
[322296175,1712939497961,-151.0,0.00052,120]
[322296176,1712939497971,-151.0,0.00052,7]
[322296177,1712939497981,-151.0,0.00052,120]
[322296178,1712939497990,-570.52799,0.00052,120]
[322296179,1712939498000,-570.52799,0.00052,120]
[322296180,1712939498012,-151.0,0.00052,120]
[322296181,1712939498022,-151.0,0.00052,120]
[322296182,1712939498032,-151.0,0.00052,120]
[322296183,1712939498042,-151.0,0.00052,120]
[322296184,1712939498051,-193.484844,0.00052,120]
[322296185,1712939498061,-500.0,0.00052054,120]
[322296186,1712939498070,-500.0,0.00052054,120]
[322296187,1712939498080,-500.0,0.00052054,120]
[322296188,1712939498089,-1000.0,0.00052054,120]
[322296189,1712939498099,-500.0,0.00052054,120]
[322296190,1712939498109,-454.55627376,0.00052054,120]
[322296191,1712939498119,-500.0,0.00052054,120]
[322296192,1712939498128,-1000.0,0.00052054,120]
[322296193,1712939498137,-500.0,0.00052054,120]
[322296194,1712939498147,-500.0,0.00052054,120]
[322296195,1712939498157,-500.0,0.00052054,120]
[322296196,1712939498166,-500.0,0.00052054,120]
[322296197,1712939498176,-500.0,0.00052054,120]
[322296198,1712939498185,-1500.0,0.00052054,120]
[322296199,1712939498194,-210.55461355,0.00052054,120]
[322296200,1712939498204,-500.0,0.00052054,120]
[322296201,1712939498213,-500.0,0.00052054,120]
[322296202,1712939498223,-500.0,0.00052054,120]
[322296203,1712939498232,-500.0,0.00052054,120]
[322296204,1712939498242,-500.0,0.00052054,120]
[322296205,1712939498251,-517.22047112,0.00052054,120]
[322296206,1712939498262,-586.55891156,0.00052054,120]
[322296207,1712939498270,-673.04411757,0.00052054,2]
[322296208,1712939498279,-508.57,0.00052054,120]
[322296209,1712939498288,-561.65,0.00052054,120]
[322296210,1712939498298,-500.0,0.00052054,120]
[322296211,1712939498307,-661.69,0.00052054,2]
[322296212,1712939498317,-525.48,0.00052054,120]
[322296213,1712939498326,-500.0,0.00052054,120]
[322296214,1712939498335,-579.42,0.00052054,120]
[322296215,1712939498345,-718.46,0.00052054,120]
[322296216,1712939498354,-500.0,0.00052054,120]
[322296217,1712939498363,-500.0,0.00052054,120]
[322296218,1712939498373,-513.42,0.00052054,120]
[322296219,1712939498383,-595.54,0.00052054,2]
[322296220,1712939498392,-586.75,0.00052054,120]
[322296221,1712939498403,-704.2,0.00052054,120]
[322296222,1712939498412,-546.18,0.00052054,120]
[322296223,1712939498422,-500.0,0.00052054,120]
[322296224,1712939498431,-427.05,0.00052054,120]
[322296225,1712939498442,-1352.77,0.00052054,120]
[322296226,1712939498451,-673.18,0.00052054,120]
[322296227,1712939498460,-629.37,0.00052054,120]
[322296228,1712939498470,-2667.34,0.00052054,120]
[322296229,1712939498479,-716.23,0.00052054,120]
[322296230,1712939498488,-1151.02,0.00052054,120]
[322296231,1712939498498,-500.0,0.00052054,120]
[322296232,1712939498509,-597.82,0.00052054,120]
[322296233,1712939498518,-634.43,0.00052054,120]
[322296234,1712939498530,-1280.3,0.00052054,120]
[322296235,1712939498544,-500.0,0.00052054,120]
[322296236,1712939498555,-1116.79,0.00052054,120]
[322296237,1712939498566,-7302.32,0.00052054,120]
[322296238,1712939498577,-1813.94,0.00052054,120]
[322296239,1712939498588,-807.13,0.00052054,120]
[322296240,1712939498598,-609.01,0.00052054,120]
[322296241,1712939498607,-519.31,0.00052054,120]
[322296242,1712939498618,-1010.89,0.00052054,120]
[322296243,1712939498629,-2090.34,0.00052054,120]
[322296244,1712939498638,-670.23,0.00052054,120]
[322296245,1712939498648,-520.06,0.00052054,120]
[322296246,1712939498657,-568.18,0.00052054,120]
[322296247,1712939498667,-500.0,0.00052054,120]
[322296248,1712939498676,-500.0,0.00052054,120]
[322296249,1712939498684,-511.2515584,0.00052054,120]
[322296250,1712939498694,-1311.53,0.00052054,120]
[322296251,1712939498704,-1628.88,0.00052054,120]
[322296252,1712939498713,-515.58,0.00052054,120]
[322296253,1712939498722,-14006.78,0.00052054,120]
[322296254,1712939498732,-166.23723505,0.00052054,120]
[322296255,1712939498742,-803.87,0.00052054,120]
[322296256,1712939498751,-500.0,0.00052054,120]
[322296257,1712939498762,-2680.68,0.00052054,120]
[322296258,1712939498771,-978.71,0.00052054,120]
[322296259,1712939498780,-2121.53,0.00052054,120]
[322296260,1712939498789,-603.45,0.00052054,120]
[322296261,1712939498798,-1410.1,0.00052054,120]
[322296262,1712939498807,-2010.88,0.00052054,120]
[322296263,1712939498816,-524.48,0.00052054,120]
[322296264,1712939498825,-2625.88,0.00052054,120]
[322296265,1712939498834,-895.41,0.00052054,120]
[322296266,1712939498844,-2788.58,0.00052054,120]
[322296267,1712939498853,-1235.34,0.00052054,120]
[322296268,1712939498862,-665.73,0.00052054,120]
[322296269,1712939498871,-1020.56,0.00052054,120]
[322296270,1712939498880,-819.11,0.00052054,120]
[322296271,1712939498888,-565.07,0.00052054,120]
[322296272,1712939498898,-920.52,0.00052054,120]
[322296273,1712939498907,-584.81,0.00052054,120]
[322296274,1712939498915,-1006.65,0.00052054,120]
[322296275,1712939498925,-6172.84,0.00052054,120]
[322296276,1712939498934,-502.19,0.00052054,120]
[322296277,1712939498943,-1224.43,0.00052054,120]
[322296278,1712939498952,-701.12,0.00052054,120]
[322296279,1712939498962,-3794.47,0.00052054,120]
[322296280,1712939498970,-795.66,0.00052054,120]
[322296281,1712939498980,-608.21,0.00052054,120]
[322296282,1712939498988,-938.69,0.00052054,120]
[322296283,1712939498998,-1074.92,0.00052054,120]
[322296284,1712939499008,-705.22,0.00052054,120]
[322296285,1712939499017,-926.87,0.00052054,120]
[322296286,1712939499026,-2317.31,0.00052054,120]
[322296287,1712939499035,-566.69,0.00052054,120]
[322296288,1712939499044,-550.45,0.00052054,120]
[322296289,1712939499054,-1028.71,0.00052054,120]
[322296290,1712939499064,-1045.05,0.00052054,120]
[322296291,1712939499073,-500.0,0.00052054,120]
[322296292,1712939499083,-1536.84,0.00052054,120]
[322296293,1712939499092,-333.41,0.00052054,120]
[322296294,1712939499102,-1599.82,0.00052054,120]
[322296295,1712939499111,-886.03,0.00052054,120]
[322296296,1712939499121,-550.42,0.00052054,120]
[322296297,1712939499131,-593.38,0.00052054,21]
[322296298,1712939499141,-868.49,0.00052054,120]
[322296299,1712939499150,-995.51,0.00052054,120]
[322296300,1712939499160,-753.01,0.00052054,120]
[322296301,1712939499170,-660.73,0.00052054,120]
[322296302,1712939499179,-2246.9,0.00052054,120]
[322296303,1712939499188,-162.37,0.00052055,30]
[322296304,1712939499197,-501.71,0.000521,7]
[322296305,1712939499206,-1000.0,0.000521,7]
[322296306,1712939499215,-224.23333333,0.00052219,120]
[322296307,1712939499224,-508.57,0.00052328,120]
[322296308,1712939499233,-561.65,0.00052328,120]
[322296309,1712939499242,-500.0,0.00052328,120]
[322296310,1712939499252,-661.69,0.00052328,2]
[322296311,1712939499262,-525.48,0.00052328,120]
[322296312,1712939499273,-179.05287638,0.00052328,120]
[322296313,1712939499283,-579.42,0.00052328,120]
[322296314,1712939499293,-718.46,0.00052328,120]
[322296315,1712939499302,-345.01,0.00052328,120]
[322296316,1712939499311,-631.28,0.00052328,120]
[322296317,1712939499320,-513.42,0.00052328,120]
[322296318,1712939499330,-595.54,0.00052328,2]
[322296319,1712939499339,-586.75,0.00052328,120]
[322296320,1712939499349,-704.2,0.00052328,120]
[322296321,1712939499358,-546.18,0.00052328,120]
[322296322,1712939499367,-500.0,0.00052328,120]
[322296323,1712939499376,-1352.77,0.00052328,120]
[322296324,1712939499386,-673.18,0.00052328,120]
[322296325,1712939499395,-629.37,0.00052328,120]
[322296326,1712939499405,-2667.34,0.00052328,120]
[322296327,1712939499414,-716.23,0.00052328,120]
[322296328,1712939499423,-1151.02,0.00052328,120]
[322296329,1712939499433,-500.0,0.00052328,120]
[322296330,1712939499442,-597.82,0.00052328,120]
[322296331,1712939499452,-634.43,0.00052328,120]
[322296332,1712939499462,-1280.3,0.00052328,120]
[322296333,1712939499472,-263.34373529,0.00052328,120]
[322296334,1712939499481,-1116.79,0.00052328,120]
[322296335,1712939499490,-7302.32,0.00052328,120]
[322296336,1712939499499,-1813.94,0.00052328,120]
[322296337,1712939499511,-807.13,0.00052328,120]
[322296338,1712939499520,-609.01,0.00052328,120]
[322296339,1712939499530,-519.31,0.00052328,120]
[322296340,1712939499539,-1010.89,0.00052328,120]
[322296341,1712939499553,-2090.34,0.00052328,120]
[322296342,1712939499562,-670.23,0.00052328,120]
[322296343,1712939499571,-520.06,0.00052328,120]
[322296344,1712939499580,-568.18,0.00052328,120]
[322296345,1712939499590,-500.0,0.00052328,120]
[322296346,1712939499599,-185.23197489,0.00052328,120]
[322296347,1712939499609,-1311.53,0.00052328,120]
[322296348,1712939499619,-1628.88,0.00052328,120]
[322296349,1712939499628,-515.58,0.00052328,120]
[322296350,1712939499637,-14006.78,0.00052328,120]
[322296351,1712939499646,-803.87,0.00052328,120]
[322296352,1712939499656,-461.84742011,0.00052328,120]
[322296353,1712939499665,-2680.68,0.00052328,120]
[322296354,1712939499674,-978.71,0.00052328,120]
[322296355,1712939499683,-2121.53,0.00052328,120]
[322296356,1712939499692,-603.45,0.00052328,120]
[322296357,1712939499702,-1410.1,0.00052328,120]
[322296358,1712939499711,-2010.88,0.00052328,120]
[322296359,1712939499720,-524.48,0.00052328,120]
[322296360,1712939499729,-2625.88,0.00052328,120]
[322296361,1712939499739,-895.41,0.00052328,120]
[322296362,1712939499748,-2788.58,0.00052328,120]
[322296363,1712939499761,-1235.34,0.00052328,120]
[322296364,1712939499771,-665.73,0.00052328,120]
[322296365,1712939499780,-1020.56,0.00052328,120]
[322296366,1712939499789,-819.11,0.00052328,120]
[322296367,1712939499799,-565.07,0.00052328,120]
[322296368,1712939499808,-920.52,0.00052328,120]
[322296369,1712939499817,-584.81,0.00052328,120]
[322296370,1712939499826,-1006.65,0.00052328,120]
[322296371,1712939499835,-6172.84,0.00052328,120]
[322296372,1712939499845,-502.19,0.00052328,120]
[322296373,1712939499855,-1224.43,0.00052328,120]
[322296374,1712939499864,-701.12,0.00052328,120]
[322296375,1712939499873,-3794.47,0.00052328,120]
[322296376,1712939499882,-795.66,0.00052328,120]
[322296377,1712939499891,-608.21,0.00052328,120]
[322296378,1712939499900,-938.69,0.00052328,120]
[322296379,1712939499910,-1074.92,0.00052328,120]
[322296380,1712939499921,-705.22,0.00052328,120]
[322296381,1712939499930,-926.87,0.00052328,120]
[322296382,1712939499939,-2317.31,0.00052328,120]
[322296383,1712939499948,-566.69,0.00052328,120]
[322296384,1712939499957,-550.45,0.00052328,120]
[322296385,1712939499966,-1028.71,0.00052328,120]
[322296386,1712939499975,-1045.05,0.00052328,120]
[322296387,1712939499985,-500.0,0.00052328,120]
[322296388,1712939499994,-1536.84,0.00052328,120]
[322296389,1712939500003,-1599.82,0.00052328,120]
[322296390,1712939500016,-886.03,0.00052328,120]
[322296391,1712939500025,-593.38,0.00052328,21]
[322296392,1712939500035,-868.49,0.00052328,120]
[322296393,1712939500044,-995.51,0.00052328,120]
[322296394,1712939500053,-753.01,0.00052328,120]
[322296395,1712939500062,-660.73,0.00052328,120]
[322296396,1712939500072,-2246.9,0.00052328,120]
[322296397,1712939500081,-500.0,0.000525,120]
[322296398,1712939500090,-150.0,0.000525,120]
[322296399,1712939500100,-508.57,0.00052602,120]
[322296400,1712939500109,-561.65,0.00052602,120]
[322296401,1712939500118,-497.85424031,0.00052602,120]
[322296402,1712939500128,-661.69,0.00052602,2]
[322296403,1712939500137,-525.48,0.00052602,120]
[322296404,1712939500147,-579.42,0.00052602,120]